bitfinex-derivatives/quotes_ETHF0:USTF0_20241105
["timestamp","ask_amount","ask_price","bid_price","bid_amount"]
[1730800360039,41.6407,2437.8,2437.6,3.61821]
[1730800360442,0.4104,2437.7,2437.6,3.61821]
[1730800361355,41.6407,2437.8,2437.6,3.61821]
[1730800362241,41.6407,2437.8,2437.6,3.2078]
[1730800362441,41.6407,2437.8,2437.6,3.61821]
[1730800362835,41.2303,2437.8,2437.7,0.8474]
[1730800363040,41.64069,2437.8,2437.7,0.8474]
[1730800363547,0.84069,2437.8,2437.7,0.437]
[1730800364546,0.095,2438.1,2437.7,1.61958556]
[1730800364852,0.41036,2438.0,2437.9,0.41037]
[1730800365355,40.8,2438.1,2437.8,1.34568]
[1730800365554,0.41037,2437.9,2437.8,1.34568]
[1730800366143,0.41036,2438.0,2437.9,0.41037]
[1730800366542,0.41037,2437.9,2437.8,0.9353]
[1730800367148,40.8,2438.1,2437.9,0.41037]
[1730800367347,0.41036,2438.0,2437.8,1.34568]
[1730800367747,41.21034,2438.1,2437.9,0.41037]
[1730800367948,40.8,2438.1,2437.8,0.9353]
[1730800368148,0.41037,2437.9,2437.8,0.9353]
[1730800368751,0.41039,2437.8,2437.7,0.84739]
[1730800368956,0.85319,2437.8,2437.7,0.84739]
[1730800372354,0.4428,2437.8,2437.7,0.84739]
[1730800378058,0.85319,2437.8,2437.7,0.84739]
[1730800379351,0.4428,2437.8,2437.7,0.84739]
[1730800380760,0.4578,2438.0,2437.7,0.437]
[1730800380959,0.86816,2438.0,2437.9,0.41037]
[1730800381357,0.41037,2437.9,2437.8,1.27017]
[1730800382163,0.86816,2438.0,2437.8,1.27017]
[1730800382365,0.41037,2437.9,2437.8,0.8598]
[1730800382955,0.85527,2437.9,2437.8,0.4303]
[1730800385053,0.4104,2437.7,2437.6,3.2078]
[1730800385256,1.63908556,2437.8,2437.3,0.8878]
[1730800385459,0.41044,2437.5,2437.4,0.23256437]
[1730800385858,41.2293,2437.5,2437.4,0.23256437]
[1730800386163,0.83974,2437.5,2437.4,0.69186437]
[1730800387156,0.4293,2437.5,2437.4,0.69186437]
[1730800387361,0.41043,2437.6,2437.5,0.41044]
[1730800387561,0.4288,2437.7,2437.5,1.18258556]
[1730800387759,0.41041,2437.7,2437.6,0.41042]
[1730800387957,0.41041,2437.7,2437.6,0.64311533]
[1730800388359,0.41041,2437.7,2437.6,0.78027088]
[1730800388854,0.41041,2437.7,2437.6,0.23269533]
[1730800389374,0.41041,2437.7,2437.6,0.78050771]
[1730800389562,0.41041,2437.7,2437.6,1.19092771]
[1730800390058,0.41041,2437.7,2437.6,0.23269533]
[1730800390263,1.29569,2437.8,2437.6,1.19091821]
[1730800390455,1.29569,2437.8,2437.7,0.78050821]
[1730800390660,1.29569,2437.8,2437.7,0.23269533]
[1730800391268,1.29569,2437.8,2437.7,0.78101069]
[1730800391463,0.41041,2437.7,2437.5,4.05772]
[1730800391669,0.41041,2437.7,2437.6,1.19181735]
[1730800392665,0.41041,2437.7,2437.6,0.64350217]
[1730800394264,0.41041,2437.7,2437.6,0.23308217]
[1730800395378,0.41041,2437.7,2437.6,0.78892948]
[1730800395663,3.07748843,2437.7,2437.6,0.23308217]
[1730800396257,3.07748843,2437.7,2437.6,1.19936916]
[1730800396656,3.07748843,2437.7,2437.6,0.78894916]
[1730800397166,3.07748843,2437.7,2437.6,0.78894603]
[1730800399466,3.07748843,2437.7,2437.6,0.78895236]
[1730800399866,2.66707843,2437.7,2437.6,2.38195792]
[1730800400057,2.66707843,2437.8,2437.7,0.4104]
[1730800400260,2.66707843,2437.8,2437.7,2.38193792]
[1730800400467,3.07745843,2437.9,2437.7,3.27668221]
[1730800400657,3.07745843,2437.9,2437.8,2.12833321]
[1730800400863,3.07745843,2437.9,2437.8,3.00632321]
[1730800401064,3.07745843,2437.9,2437.8,2.59593321]
[1730800402070,0.41038,2437.9,2437.8,2.59593321]
[1730800402567,3.08639626,2437.9,2437.8,2.59593321]
[1730800403573,2.55133502,2437.9,2437.8,2.59593321]
[1730800404665,2.55133502,2437.9,2437.8,2.59594349]
[1730800406275,2.55133502,2437.9,2437.8,0.9125]
[1730800406475,2.55133502,2437.9,2437.8,2.59931943]
[1730800407970,2.55133502,2437.9,2437.8,2.59933131]
[1730800409769,2.55133502,2437.9,2437.8,1.47175295]
[1730800410069,2.55133502,2437.9,2437.8,0.9125]
[1730800410272,2.14095502,2437.9,2437.8,2.59939601]
[1730800410767,2.14095502,2437.9,2437.8,3.00978601]
[1730800410966,2.60625502,2438.1,2437.8,9.63278367]
[1730800411277,2.55127502,2438.2,2438.0,4.80073556]
[1730800411463,2.55127502,2438.2,2438.1,2.53283601]
[1730800411867,2.55127502,2438.2,2438.1,2.12249601]
[1730800412475,0.41032,2438.2,2438.1,2.12249601]
[1730800412781,2.98456502,2438.3,2438.1,2.53283601]
[1730800412963,2.98456502,2438.3,2438.2,2.11738358]
[1730800413167,2.98456502,2438.3,2438.2,1.22298986]
[1730800414881,2.98456502,2438.3,2438.2,0.4309]
[1730800415372,2.98456502,2438.3,2438.2,0.84122]
[1730800415373,0.84361,2438.3,2438.2,0.84122]
[1730800416067,0.84361,2438.3,2438.2,0.4309]
[1730800417265,0.84361,2438.3,2438.2,0.84122]
[1730800417883,0.84361,2438.3,2438.2,0.4309]
[1730800418579,3.10949378,2438.3,2438.1,0.84593]
[1730800418775,2.54922785,2438.2,2438.1,0.84593]
[1730800419078,3.10949378,2438.3,2438.0,3.2078]
[1730800419079,0.41034,2438.1,2438.0,3.2078]
[1730800419376,1.59292556,2438.1,2438.0,3.2078]
[1730800419577,3.85877934,2438.1,2437.7,3.61819]
[1730800419877,4.05485494,2438.0,2437.8,1.18258556]
[1730800420081,2.13867825,2437.9,2437.8,1.59295556]
[1730800420479,3.46963825,2438.0,2437.8,2.29551326]
[1730800420672,3.46963825,2438.0,2437.8,1.65258556]
[1730800420868,2.13867825,2438.0,2437.9,2.03565556]
[1730800421171,2.54900825,2438.2,2438.0,0.41035]
[1730800421378,2.54899825,2438.2,2438.0,3.61814]
[1730800421581,2.54899825,2438.2,2438.1,1.59292556]
[1730800422079,2.54899825,2438.2,2438.1,1.18258556]
[1730800422884,2.54899825,2438.2,2438.1,1.98293703]
[1730800424372,2.54899825,2438.2,2438.1,1.98286154]
[1730800425176,2.54899825,2438.2,2438.1,2.39320154]
[1730800425680,0.41032,2438.2,2438.1,1.98286154]
[1730800425876,0.41032,2438.2,2438.1,2.39320154]
[1730800426482,0.41032,2438.2,2438.1,1.98286154]
[1730800426885,0.41032,2438.2,2438.1,2.39320154]
[1730800427880,0.41032,2438.2,2438.1,2.62167471]
[1730800431479,0.41032,2438.2,2438.1,2.62267559]
[1730800431687,0.41032,2438.2,2438.1,2.21233559]
[1730800431872,0.41032,2438.2,2438.1,1.41114643]
[1730800432076,0.41032,2438.2,2438.1,2.2122281]
[1730800433488,0.41032,2438.2,2438.1,2.6225681]
[1730800433682,0.41032,2438.2,2438.1,2.2122281]
[1730800434386,0.50527,2438.5,2438.3,0.4103]
[1730800434583,0.4103,2438.3,2438.2,3.6488]
[1730800434777,0.4103,2438.3,2438.2,4.83138556]
[1730800435186,0.4593,2438.5,2438.2,4.83138556]
[1730800435486,0.4103,2438.3,2438.2,3.2078]
[1730800435689,0.41032,2438.2,2438.1,0.22856087]
[1730800435892,0.87532,2438.2,2438.0,0.41034]
[1730800436086,0.87532,2438.2,2438.1,2.04052556]
[1730800437182,0.41034,2438.1,2438.0,0.2185629]
[1730800437475,0.83644,2438.1,2438.0,0.6661629]
[1730800437681,41.63644,2438.1,2438.0,0.6661629]
[1730800438281,41.63644,2438.1,2438.0,1.23499195]
[1730800438483,41.63644,2438.1,2438.0,1.46746377]
[1730800439086,0.83644,2438.1,2438.0,1.46746377]
[1730800440187,0.83644,2438.1,2438.0,2.37774933]
[1730800440404,0.83644,2438.1,2438.0,2.37777486]
[1730800440892,0.83644,2438.1,2438.0,1.93017486]
[1730800441089,0.83644,2438.1,2438.0,1.69767751]
[1730800441290,0.83644,2438.1,2438.0,1.93017488]
[1730800443292,0.83644,2438.1,2438.0,1.71161198]
[1730800443593,0.83644,2438.1,2438.0,0.80132642]
[1730800444494,0.83644,2438.1,2438.0,0.80174164]
[1730800445190,0.83644,2438.1,2438.0,2.12283114]
[1730800445384,2.60367825,2438.2,2438.1,0.41034]
[1730800445690,0.465,2438.2,2438.1,2.12282114]
[1730800445989,0.465,2438.2,2438.1,2.55922114]
[1730800447292,0.465,2438.2,2438.1,2.14888114]
[1730800447293,0.87532,2438.2,2438.1,2.14888114]
[1730800447494,0.465,2438.2,2438.1,2.55922114]
[1730800447789,0.87532,2438.2,2438.1,2.55922114]
[1730800447992,0.465,2438.2,2438.1,0.84674]
[1730800448291,0.465,2438.2,2438.1,2.5594576]
[1730800449089,3.6477,2438.5,2438.1,4.40802133]
[1730800449090,2.13867825,2438.4,2438.1,4.40802133]
[1730800449294,2.98885825,2438.5,2438.4,0.41028]
[1730800449491,2.57857825,2438.5,2438.4,1.2121765]
[1730800449687,2.57857825,2438.5,2438.4,3.03210433]
[1730800449688,0.85017,2438.5,2438.4,3.03210433]
[1730800451298,0.85017,2438.5,2438.4,2.62182433]
[1730800451495,0.85017,2438.5,2438.4,0.9091]
[1730800451802,2.98884825,2438.5,2438.4,2.62184707]
[1730800451993,2.98884825,2438.5,2438.4,3.03212707]
[1730800452597,10.29744825,2438.5,2438.4,0.8019021]
[1730800452799,8.15877,2438.5,2438.4,0.8019021]
[1730800454095,4.05797,2438.5,2438.4,0.8019021]
[1730800454292,8.15877,2438.5,2438.4,0.8019021]
[1730800455204,0.41032,2438.3,2438.1,1.91645913]
[1730800455599,0.41032,2438.3,2438.2,1.48087384]
[1730800455902,0.41032,2438.3,2438.2,1.71362876]
[1730800455903,2.9849592,2438.3,2438.2,1.71362876]
[1730800456398,7.0865592,2438.3,2438.2,1.71362876]
[1730800456905,4.94632,2438.3,2438.2,1.71362876]
[1730800457103,6.12890556,2438.3,2438.2,1.71362876]
[1730800457408,6.12890556,2438.3,2438.2,0.80232178]
[1730800457596,9.33670556,2438.3,2438.2,0.80232178]
[1730800457792,9.33670556,2438.3,2438.2,0.23278481]
[1730800458109,9.33670556,2438.3,2437.9,3.2078]
[1730800458302,2.55078271,2438.0,2437.9,3.2078]
[1730800458600,2.55061279,2438.0,2437.9,4.92153074]
[1730800458801,1.32295,2438.0,2437.9,3.2078]
[1730800459004,1.32295,2438.0,2437.9,4.92151573]
[1730800459401,3.46294457,2438.0,2437.9,4.01016589]
[1730800459799,3.46294457,2438.0,2437.9,4.92139164]
[1730800460003,3.46294457,2438.0,2437.9,1.71359164]
[1730800460401,3.46294457,2438.0,2437.9,0.80236589]
[1730800461999,3.46294457,2438.0,2437.7,3.2078]
[1730800462000,6.19678556,2438.0,2437.7,3.2078]
[1730800462202,1.59297556,2437.8,2437.7,3.2078]
[1730800462411,5.69537556,2437.8,2437.7,3.2078]
[1730800462711,8.83291644,2437.8,2437.7,3.2078]
[1730800462902,7.65033088,2437.8,2437.7,3.2078]
[1730800463405,4.97479,2437.8,2437.7,3.2078]
[1730800464602,7.11210959,2437.8,2437.7,3.2078]
[1730800464801,0.41042,2437.6,2437.5,4.06804]
[1730800465007,0.41042,2437.6,2437.5,4.63696142]
[1730800465608,2.13737127,2437.8,2437.5,4.22652142]
[1730800465803,0.41039,2437.8,2437.7,0.41039]
[1730800466004,0.41038,2437.9,2437.8,0.41038]
[1730800466504,3.03787127,2438.0,2437.5,3.2078]
[1730800466709,0.4104,2437.7,2437.6,0.5687298]
[1730800467009,0.4104,2437.7,2437.6,1.0015298]
[1730800469605,0.4104,2437.7,2437.6,0.4328]
[1730800469911,0.4104,2437.7,2437.6,1.00141638]
[1730800470303,0.4104,2437.7,2437.6,0.4328]
[1730800470498,0.4104,2437.7,2437.6,1.00137025]
[1730800471117,0.4104,2437.7,2437.6,0.4328]
[1730800471615,0.4104,2437.7,2437.6,1.00132476]
[1730800471805,0.4104,2437.7,2437.6,1.00132522]
[1730800472901,3.03787127,2438.0,2437.6,1.00132522]
[1730800473109,0.86596,2438.0,2437.8,0.41038]
[1730800473609,0.86596,2438.0,2437.8,0.84368]
[1730800474109,0.4556,2438.0,2437.9,0.23172071]
[1730800474411,0.41037,2437.9,2437.8,0.84368]
[1730800474609,0.41037,2437.9,2437.8,1.6438806]
[1730800475004,0.41037,2437.9,2437.8,1.2335006]
[1730800476012,0.4556,2438.0,2437.8,1.2335006]
[1730800476208,0.4556,2438.0,2437.8,0.4333]
[1730800476408,0.866,2438.0,2437.8,0.4333]
[1730800476614,0.4556,2438.0,2437.8,0.4333]
[1730800476810,0.4281,2437.9,2437.8,0.4333]
[1730800481515,3.00337127,2438.0,2437.8,1.0753035]
[1730800481516,0.866,2438.0,2437.8,1.0753035]
[1730800481710,0.866,2438.0,2437.8,0.84373]
[1730800481918,0.866,2438.0,2437.8,0.4333]
[1730800482516,0.866,2438.0,2437.8,0.84373]
[1730800482809,0.866,2438.0,2437.8,0.4333]
[1730800483014,0.41041,2437.9,2437.8,0.4333]
[1730800483214,0.41041,2437.9,2437.8,0.6648706]
[1730800483821,0.41041,2437.9,2437.8,1.0753006]
[1730800484322,0.866,2438.0,2437.8,1.64390425]
[1730800484522,0.866,2438.0,2437.8,0.84373]
[1730800485818,0.41041,2437.9,2437.8,0.84373]
[1730800486018,0.41041,2437.9,2437.8,1.07531253]
[1730800487418,0.41041,2437.9,2437.8,0.66488253]
[1730800487717,0.41041,2437.9,2437.8,0.23158253]
[1730800487919,0.41046,2437.6,2437.5,0.4314]
[1730800488319,0.41046,2437.6,2437.5,1.45008505]
[1730800488520,0.41046,2437.6,2437.5,0.66300647]
[1730800488819,0.41046,2437.6,2437.5,1.21847899]
[1730800491614,0.41046,2437.6,2437.5,1.21482518]
[1730800492027,0.41046,2437.6,2437.5,1.62530518]
[1730800492421,0.4357,2437.8,2437.5,1.21482518]
[1730800492629,0.84613,2437.8,2437.6,1.19388806]
[1730800492830,0.84613,2437.8,2437.7,0.23160086]
[1730800493930,3.61822,2437.9,2437.7,0.64203086]
[1730800494119,3.2078,2437.9,2437.8,0.65690086]
[1730800494427,3.2078,2437.9,2437.8,1.61919583]
[1730800495335,3.2078,2437.9,2437.8,0.83573]
[1730800495622,3.2078,2437.9,2437.8,1.61931802]
[1730800497124,3.2078,2437.9,2437.8,2.80190358]
[1730800497728,4.80079556,2437.9,2437.8,0.78358802]
[1730800498122,4.80079556,2437.9,2437.8,0.23164668]
[1730800498317,4.80079556,2437.9,2437.7,0.41044]
[1730800498318,5.34517127,2437.9,2437.7,0.41044]
[1730800498523,0.83723,2437.8,2437.7,0.41044]
[1730800498726,0.83723,2437.8,2437.7,1.1947282]
[1730800498926,0.4268,2437.8,2437.7,1.1947282]
[1730800500329,0.4268,2437.8,2437.7,2.07912781]
[1730800500825,3.2078,2437.9,2437.7,2.07912781]
[1730800500826,3.2078,2437.9,2437.8,0.41043]
[1730800501025,3.2078,2437.9,2437.8,2.99241781]
[1730800501333,3.2078,2437.9,2437.8,7.09401781]
[1730800501728,3.2078,2437.9,2437.8,7.09261998]
[1730800501929,3.2078,2437.9,2437.8,8.16805911]
[1730800503226,3.2078,2437.9,2437.8,9.48099984]
[1730800503429,2.23237127,2438.2,2438.1,0.41038]
[1730800503625,2.13737127,2438.3,2438.2,0.41036]
[1730800503829,2.13737127,2438.3,2438.2,2.53941044]
[1730800504033,2.13737127,2438.4,2438.2,3.01307896]
[1730800504331,2.13737127,2438.4,2438.3,1.19329044]
[1730800504737,2.13737127,2438.4,2438.3,1.19312356]
[1730800505434,2.13737127,2438.4,2438.3,1.19277406]
[1730800506330,3.44468127,2438.5,2438.3,1.19253684]
[1730800506533,3.44468127,2438.5,2438.4,0.23007135]
[1730800508737,8.72806683,2438.5,2438.4,0.23007135]
[1730800509048,8.72806683,2438.5,2437.7,0.87404]
[1730800509049,0.41041,2437.9,2437.7,0.87404]
[1730800509236,0.41041,2437.9,2437.6,2.39908859]
[1730800509535,0.41041,2437.9,2437.7,0.55203304]
[1730800509536,0.8888,2437.8,2437.7,0.55203304]
[1730800509933,0.8888,2437.8,2437.7,0.96247304]
[1730800510438,0.8888,2437.8,2437.7,0.55203304]
[1730800510938,1.29923,2437.8,2437.7,0.55203304]
[1730800511342,0.8888,2437.8,2437.7,0.55203304]
[1730800512240,1.3224,2437.8,2437.7,0.55203304]
[1730800512637,5.34515278,2438.0,2437.6,2.09518556]
[1730800512939,2.13735278,2438.2,2438.1,0.41038]
[1730800513144,2.13735278,2438.3,2438.2,0.41036]
[1730800513342,2.13735278,2438.4,2438.2,1.01190133]
[1730800513539,2.60145278,2438.5,2438.2,0.8916]
[1730800513741,3.01176278,2438.5,2438.3,0.41033]
[1730800514336,0.41038,2438.1,2437.9,1.48642859]
[1730800514549,2.13735278,2438.3,2438.0,0.55197654]
[1730800514844,0.41038,2438.1,2437.9,0.4104]
[1730800515036,0.41038,2438.1,2438.0,0.55198089]
[1730800515236,2.13735278,2438.3,2438.0,0.55198089]
[1730800515469,0.41038,2438.1,2437.9,0.4104]
[1730800515637,0.41038,2438.1,2438.0,0.55196727]
[1730800516041,0.41036,2438.2,2438.0,0.96235727]
[1730800516243,0.41036,2438.2,2438.0,0.41039]
[1730800516641,0.41036,2438.2,2437.9,3.2078]
[1730800516642,2.13735278,2438.4,2437.9,3.2078]
[1730800516846,0.41037,2438.2,2438.0,0.96234466]
[1730800517043,0.41037,2438.2,2438.0,0.41039]
[1730800518040,2.13735278,2438.4,2438.0,0.41039]
[1730800518245,2.13735278,2438.4,2437.9,3.2078]
[1730800518544,2.13735278,2438.3,2438.0,0.5519581]
[1730800518750,2.13735278,2438.3,2437.9,3.6182]
[1730800518751,0.41038,2438.1,2437.9,3.6182]
[1730800518956,0.41038,2438.1,2438.0,0.55196975]
[1730800519153,0.87888,2438.1,2438.0,0.55196975]
[1730800519355,0.4685,2438.1,2438.0,0.96235975]
[1730800520155,0.4685,2438.1,2438.0,0.55196975]
[1730800520348,0.87888,2438.1,2437.9,0.4104]
[1730800520954,0.87888,2438.1,2438.0,0.22934423]
[1730800521749,6.64844386,2438.1,2438.0,0.22934423]
[1730800522052,0.41042,2437.9,2437.6,3.61825]
[1730800522355,0.41043,2437.8,2437.7,1.24863852]
[1730800522550,0.83983,2437.8,2437.7,0.69664969]
[1730800523756,0.83983,2437.8,2437.7,1.24864209]
[1730800524058,0.83983,2437.8,2437.7,1.24861812]
[1730800524457,0.83983,2437.8,2437.7,1.24862534]
[1730800524759,0.83983,2437.8,2437.7,0.69663194]
[1730800527545,0.83983,2437.8,2437.7,0.4684]
[1730800527749,0.83983,2437.8,2437.7,0.69666056]
[1730800528256,2.56407501,2437.8,2437.3,0.4382]
[1730800528567,2.56407501,2437.8,2437.1,4.82010439]
[1730800528568,8.83153887,2437.7,2437.4,0.22823788]
[1730800528750,2.13467501,2437.5,2437.0,0.8499]
[1730800528953,0.41053,2437.2,2437.1,0.78032398]
[1730800529150,2.56747501,2437.4,2437.1,0.78032398]
[1730800529361,0.85011,2437.3,2437.2,0.22818921]
[1730800529547,0.41054,2437.1,2437.0,0.8499]
[1730800529752,0.41054,2437.1,2437.0,1.63000137]
[1730800530257,0.9017,2437.3,2437.0,1.07809279]
[1730800530554,0.41054,2437.2,2437.1,0.22819279]
[1730800531350,0.41054,2437.2,2437.0,1.26046]
[1730800531561,0.41054,2437.2,2437.1,0.22716302]
[1730800531752,0.41054,2437.2,2437.0,1.26046]
[1730800532462,1.31222,2437.3,2437.1,0.41054]
[1730800532853,0.41053,2437.2,2437.0,1.26045]
[1730800533056,0.9017,2437.3,2437.0,0.8499]
[1730800533258,0.41053,2437.2,2437.0,1.26046]
[1730800534661,0.9017,2437.3,2437.0,1.26046]
[1730800534662,1.31222,2437.3,2437.1,0.41054]
[1730800535355,1.31222,2437.3,2436.7,0.44447]
[1730800535356,0.41058,2437.0,2436.7,0.44447]
[1730800535656,0.41058,2436.9,2436.8,0.22693559]
[1730800535859,3.2078,2437.2,2436.8,0.22693559]
[1730800536063,0.41054,2437.1,2436.7,0.44447]
[1730800536364,0.41059,2436.9,2436.7,0.44447]
[1730800536859,3.2078,2437.2,2436.8,4.104]
[1730800537055,0.41058,2436.9,2436.7,0.44447]
[1730800537258,0.41057,2437.0,2436.7,0.44447]
[1730800537564,0.41057,2437.0,2436.8,0.41059]
[1730800538768,0.41053,2437.2,2436.7,3.65227]
[1730800538962,0.41059,2436.9,2436.7,3.24167]
[1730800539154,0.41059,2436.9,2436.7,3.65228]
[1730800539359,5.1358,2437.3,2436.7,3.65228]
[1730800539560,0.41058,2437.0,2436.7,3.65228]
[1730800539761,0.41058,2436.9,2436.7,3.65228]
[1730800540659,5.1358,2437.3,2436.7,3.24167]
[1730800540861,0.41058,2437.0,2436.7,3.65227]
[1730800541258,0.41055,2437.1,2436.9,0.41057]
[1730800541561,0.41055,2437.1,2437.0,0.4541]
[1730800541763,0.41055,2437.1,2437.0,1.3153]
[1730800544365,0.41055,2437.1,2436.7,3.24167]
[1730800544366,0.4106,2436.8,2436.7,0.03387]
[1730800546462,6.21376386,2436.9,2436.4,4.48466]
[1730800546463,0.41064,2436.6,2436.4,4.48466]
[1730800547566,0.41064,2436.6,2436.4,1.27686]
[1730800552366,0.87832,2436.7,2436.4,1.27685]
[1730800552561,0.41064,2436.6,2436.4,0.8662]
[1730800554071,0.41064,2436.6,2436.4,1.27686]
[1730800555072,6.21376386,2436.9,2436.4,0.8662]
[1730800555265,0.4106,2436.8,2436.6,0.41062]
[1730800555570,3.2078,2436.9,2436.7,0.8472]
[1730800555872,3.2078,2436.9,2436.8,0.9003]
[1730800556075,3.2078,2436.9,2436.8,1.3109]
[1730800558466,3.2078,2436.9,2436.8,5.4149]
[1730800559271,3.2078,2436.9,2436.8,1.3109]
[1730800559474,3.2078,2436.9,2436.8,1.5387371]
[1730800559676,3.2078,2436.9,2436.8,0.6384371]
[1730800561272,3.2078,2436.9,2436.8,0.4106]
[1730800561469,3.61839,2436.9,2436.7,0.41061]
[1730800562072,3.2078,2436.9,2436.7,0.41061]
[1730800562266,3.2078,2436.9,2436.8,0.4106]
[1730800562879,0.41057,2437.0,2436.8,0.4106]
[1730800563271,0.41057,2437.0,2436.9,0.4263]
[1730800563479,3.61837,2437.0,2436.9,0.4263]
[1730800563877,0.41057,2437.0,2436.9,0.4263]
[1730800564077,3.61837,2437.0,2436.9,0.4263]
[1730800565681,3.61836,2437.0,2436.9,0.4263]
[1730800566579,3.2078,2437.0,2436.9,0.83688]
[1730800566776,3.3028,2437.3,2436.9,0.4263]
[1730800567084,0.41055,2437.1,2437.0,0.8749]
[1730800569281,1.18292333,2437.2,2437.0,0.8749]
[1730800569481,1.59346333,2437.2,2437.0,0.8749]
[1730800570389,1.18292333,2437.2,2437.0,1.28545]
[1730800570982,1.59345333,2437.2,2437.0,1.28545]
[1730800572487,1.59345333,2437.2,2437.1,0.22657985]
[1730800574685,1.59345333,2437.2,2437.0,1.28545]
[1730800574883,1.59345333,2437.2,2437.1,0.22674386]
[1730800577782,1.59345333,2437.2,2437.1,0.77905153]
[1730800577985,1.59345333,2437.2,2437.1,0.77905273]
[1730800578289,0.41052,2437.3,2437.1,1.18959273]
[1730800578490,1.59344333,2437.3,2437.2,0.22674386]
[1730800578992,0.41052,2437.3,2437.2,0.22674386]
[1730800579186,1.59344333,2437.3,2437.2,0.22674386]
[1730800582090,7.83131834,2437.3,2436.8,3.2078]
[1730800582290,7.83131834,2437.3,2436.5,2.14973919]
[1730800582291,0.41061,2436.7,2436.5,1.92246859]
[1730800582486,0.4375,2436.6,2436.5,0.4358]
[1730800582688,1.28304,2436.6,2436.4,3.2078]
[1730800582894,1.28304,2436.6,2436.5,0.55237446]
[1730800583594,0.41065,2436.5,2436.4,3.2078]
[1730800583794,1.59357333,2436.5,2436.4,3.76015562]
[1730800585491,0.87455,2436.5,2436.4,3.76015562]
[1730800585691,0.87455,2436.5,2436.4,0.55235562]
[1730800586286,0.41066,2436.4,2436.3,3.2078]
[1730800586595,0.41066,2436.4,2436.3,3.76002933]
[1730800588192,0.41066,2436.4,2436.0,0.03912]
[1730800588193,4.1048,2436.4,2436.0,0.03912]
[1730800588497,2.59547943,2436.5,2436.0,0.03912]
[1730800588791,0.41066,2436.4,2436.1,0.55208676]
[1730800588988,0.41066,2436.4,2436.1,0.4107]
[1730800589389,0.41066,2436.4,2436.2,0.41069]
[1730800590189,0.41066,2436.4,2436.1,0.41071]
[1730800590392,0.41066,2436.4,2436.1,0.4107]
[1730800590393,0.41067,2436.4,2436.1,0.4107]
[1730800590592,0.87455,2436.5,2436.2,0.41069]
[1730800590790,4.0802,2436.6,2436.3,1.3401]
[1730800590996,0.41065,2436.5,2436.3,1.75077]
[1730800591594,0.84813,2436.6,2436.4,0.41066]
[1730800592097,0.84813,2436.6,2436.3,4.95857]
[1730800592598,0.41065,2436.5,2436.3,4.95857]
[1730800592793,0.41065,2436.5,2436.3,4.5479]
[1730800592990,0.84814,2436.6,2436.3,4.95857]
[1730800593398,0.84814,2436.6,2436.3,1.75077]
[1730800593898,0.84814,2436.6,2436.3,5.18165958]
[1730800594398,0.4375,2436.6,2436.3,5.18165958]
[1730800594593,0.84813,2436.6,2436.3,4.77098958]
[1730800594792,0.84813,2436.6,2436.3,5.18165958]
[1730800595301,0.4375,2436.6,2436.4,0.41066]
[1730800595696,0.84813,2436.6,2436.4,0.41066]
[1730800595993,0.41066,2436.5,2436.3,4.5479]
[1730800596196,0.41066,2436.5,2436.3,4.95858]
[1730800597499,0.84814,2436.6,2436.3,4.95858]
[1730800597906,0.4375,2436.6,2436.3,4.95858]
[1730800598196,0.41065,2436.5,2436.3,4.95858]
[1730800599303,0.41065,2436.5,2436.3,1.75078]
[1730800599495,0.4375,2436.6,2436.3,1.75078]
[1730800599696,0.4375,2436.6,2436.3,4.5479]
[1730800599900,0.84814,2436.6,2436.3,4.95857]
[1730800600100,0.4375,2436.6,2436.3,3.2078]
[1730800600299,0.41066,2436.4,2436.2,0.2231252]
[1730800600499,0.41066,2436.4,2436.3,0.4334]
[1730800600701,40.8,2436.5,2436.3,3.6412]
[1730800600702,0.41066,2436.5,2436.3,3.6412]
[1730800601097,41.2375,2436.6,2436.3,3.6412]
[1730800601303,0.41066,2436.4,2436.3,3.6412]
[1730800601500,0.4107,2436.2,2436.0,4.28382859]
[1730800601698,0.4107,2436.2,2436.1,0.5488418]
[1730800601899,40.8,2436.5,2436.1,0.5488418]
[1730800602102,0.41069,2436.3,2436.0,4.05193]
[1730800602598,0.8979,2436.4,2436.0,4.05193]
[1730800602801,0.8979,2436.4,2436.1,3.2078]
[1730800603301,0.41068,2436.3,2436.1,3.2078]
[1730800603706,0.4107,2436.2,2436.1,3.2078]
[1730800603906,0.8598,2436.2,2436.1,3.2078]
[1730800604205,0.4491,2436.2,2436.1,3.2078]
[1730800604410,0.4491,2436.2,2436.1,3.61851]
[1730800604800,0.41069,2436.3,2436.1,3.61851]
[1730800605709,0.41069,2436.3,2436.1,0.41071]
[1730800607109,1.347,2436.4,2436.1,0.41071]
[1730800607313,2.94086273,2436.4,2436.1,0.4107]
[1730800607909,2.53019273,2436.4,2436.1,0.4107]
[1730800608213,0.41069,2436.3,2436.0,3.6412]
[1730800608411,0.4107,2436.2,2436.0,4.05193]
[1730800608713,1.18319273,2436.3,2436.0,4.05193]
[1730800609016,1.59388273,2436.3,2436.0,4.05193]
[1730800609413,1.59388273,2436.3,2436.0,0.84413]
[1730800609916,1.59388273,2436.3,2436.0,4.05193]
[1730800611313,1.59388273,2436.3,2436.0,0.84413]
[1730800611515,1.59388273,2436.3,2436.0,4.05193]
[1730800613315,1.59388273,2436.3,2436.0,0.84413]
[1730800613813,0.41069,2436.3,2436.0,4.05193]
[1730800614206,0.41069,2436.3,2436.0,0.84413]
[1730800614713,0.41069,2436.3,2436.0,4.05193]
[1730800616114,0.41069,2436.3,2436.0,0.84413]
[1730800616717,0.41069,2436.3,2436.0,4.05193]
[1730800616914,0.41069,2436.3,2436.0,0.84413]
[1730800617114,0.41069,2436.3,2436.0,4.05193]
[1730800617819,0.41068,2436.3,2436.0,4.05193]
[1730800618115,2.53019273,2436.4,2436.0,3.6412]
[1730800618316,1.59390273,2436.2,2436.0,3.6412]
[1730800618515,0.41071,2436.1,2436.0,3.6412]
[1730800618714,0.4261,2436.1,2436.0,3.6412]
[1730800619726,0.4261,2436.1,2436.0,4.05193]
[1730800619921,1.18319273,2436.2,2436.0,4.05193]